{"text_format":"1","workbook":"xlsx","n_sheets":5,"sheets":["Establishment details","List","Efforts to refine","Translations","Validation"],"not_rendered":{"charts":0,"images":1,"macros":1,"external_links":0,"defined_names":61,"comments":0,"pivot_tables":0},"unopened":[],"bounds":{"document_bytes":16777216,"sheet_cells":100000,"rows_first":2000,"rows_last":500,"rows_between":2000,"halvings":0,"cell_chars":16384,"cell_head_chars":4096},"cells_cut":0,"cells_raw":0,"read":"whole","date_system":"1900"}

{"sheet":"Establishment details","index":0,"n_rows":14,"n_cols":4,"rows_kept":14,"cut":false,"hidden":false,"merged":[[0,1,0,4],[16,1,16,4]]}
[null,{"$f":"CONCATENATE(\"Data o použitých zvířatech \",D14)","v":"Data o použitých zvířatech 2022"}]
[]
[]
[null,null,"Stát:","Česko"]
[]
[null,null,"Jméno:"]
[]
[null,null,"Příjmení:"]
[]
[null,null,"E-mail:"]
[]
[null,null,"Zařízení:"]
[]
[null,null,"Údaje za rok:",2022]

{"sheet":"List","index":1,"n_rows":3,"n_cols":20,"rows_kept":3,"cut":false,"hidden":false,"merged":[]}
[]
[]
[{"$f":"LabelRecordType","v":"Druh záznamu *"},{"$f":"LabelId1","v":"Id 1"},{"$f":"LabelId2","v":"Id 2"},{"$f":"LabelId3","v":"Id 3"},{"$f":"LabelAnimalSpecies","v":"Druh zvířete *"},{"$f":"LabelSpecifyOtherAnimalSpecies","v":"Upřesněte \"ostatní\""},{"$f":"LabelNumberOfAnimals","v":"Počet zvířat *"},{"$f":"LabelGeneticStatus","v":"Genetický stav *"},{"$f":"LabelCreationOfNewGL","v":"Vytvoření nové geneticky upravené linie *"},{"$f":"LabelMaintenance","v":"Udržování populací"},{"$f":"LabelCollectionOfOrgans","v":"Kolekce orgánů / tkání"},{"$f":"LabelMethodOfTissueSampling","v":"Metody odběru tkáňových vzorků"},{"$f":"LabelMethodOfTissueSamplingSpecifyOther","v":"Specifikujte \"ostatní\" metodu"},{"$f":"LabelComments","v":"Poznámka"},{"$f":"LabelField_1","v":"Pole 1"},{"$f":"LabelField_2","v":"Pole 2"},{"$f":"LabelField_3","v":"Pole 3"},{"$f":"LabelField_4","v":"Pole 4"},{"$f":"LabelField_5","v":"Pole 5"},{"$f":"LabelField_6","v":"Pole 6"}]

{"sheet":"Efforts to refine","index":2,"n_rows":1,"n_cols":1,"rows_kept":1,"cut":false,"hidden":false,"merged":[]}
[{"$f":"label_efforts_made_to_refine","v":"Informace o snaze o zdokonalení metod odběru tkáňových vzorků"}]

{"sheet":"Translations","index":3,"n_rows":79,"n_cols":63,"rows_kept":79,"cut":false,"hidden":true,"merged":[[2,42,2,44],[2,46,2,47]]}
["Druh záznamu","Kód","Druh zvířete",null,"Kód + druh",null,null,null,null,null,null,"Stát",null,null,null,"Ano / Ne",null,null,null,"Genetický stav",null,null,null,null,null,null,"Vykazovaný rok",null,null,"Metody odběru tkáňových vzorků",null,null,null,null,null,null,"Hodnoty rozevíracího seznamu ID1","Hodnoty rozevíracího seznamu ID2","Hodnoty rozevíracího seznamu ID3","Hodnoty rozevíracího seznamu pro jiné druhy","Hodnoty rozevíracího seznamu pro jiné metody odběru vzorků",null,"Záhlaví tabulky"]
["[IR1] Odběr tkáňových vzorků (neinvazívní genotypizace nebo z přebytečné tkáně)","A1","Myš laboratorní (Mus musculus)",null,{"$f":"CONCATENATE(\"[\",B2,\"] \",C2)","v":"[A1] Myš laboratorní (Mus musculus)"},null,null,null,null,null,null,"Rakousko",null,null,null,"[N] Ne",null,null,null,"[GS1] Bez genetických změn",null,null,null,null,null,null,2021,null,null,"[ST1] Přebytečná tkáň z označování zvířat děrováním ucha",null,null,null,null,null,null,null,null,null,null,null,null,"Druh záznamu *","Id 1","Id 2","Id 3","Druh zvířete *","Upřesněte \"ostatní\"","Počet zvířat *","Genetický stav *","Vytvoření nové geneticky upravené linie *","Udržování populací","Kolekce orgánů / tkání","Metody odběru tkáňových vzorků","Specifikujte \"ostatní\" metodu","Poznámka","Pole 1","Pole 2","Pole 3","Pole 4","Pole 5","Pole 6","Informace o snaze o zdokonalení metod odběru tkáňových vzorků"]
["[IR2] Zvířata usmrcená za účelem využití orgánů nebo tkání","A2","Potkan laboratorní (Rattus norvegicus)",null,"[A2] Potkan laboratorní (Rattus norvegicus)",null,null,null,null,null,null,"Belgie",null,null,null,"[Y] Ano",null,null,null,"[GS4] Geneticky upravená",null,null,null,null,null,null,2022,null,null,"[ST2] Přebytečná tkáň z označování zvířat odstřižením prstíku",null,null,null,null,null,null,null,null,null,null,null,null,"Překlad okna s podrobnostmi"]
[null,"A3","Morče domácí (Cavia porcellus)",null,"[A3] Morče domácí (Cavia porcellus)",null,null,null,null,null,null,"Bulharsko",null,null,null,null,null,null,null,null,null,null,null,null,null,null,2023,null,null,"[NG1] Neinvazívní genotypizace: odběr srsti",null,null,null,null,null,null,null,null,null,null,null,null,"Předchozí"]
[null,"A4","Křeček zlatý (Mesocricetus auratus)",null,"[A4] Křeček zlatý (Mesocricetus auratus)",null,null,null,null,null,null,"Chorvatsko",null,null,null,null,null,null,null,null,null,null,null,null,null,null,2024,null,null,"[NG2] Neinvazívní genotypizace: pozorování ve speciálním světle",null,null,null,null,null,null,null,null,null,null,null,null,"Aktuální řádek"]
[null,"A5","Křečík čínský (Cricetulus griseus)",null,"[A5] Křečík čínský (Cricetulus griseus)",null,null,null,null,null,null,"Kypr",null,null,null,null,null,null,null,null,null,null,null,null,null,null,2025,null,null,"[NG3] Neinvazívní genotypizace: post mortem",null,null,null,null,null,null,null,null,null,null,null,null,"Pracuj!"]
[null,"A6","Pískomil mongolský (Meriones unguiculatus)",null,"[A6] Pískomil mongolský (Meriones unguiculatus)",null,null,null,null,null,null,"Česko",null,null,null,null,null,null,null,null,null,null,null,null,null,null,2026,null,null,"[NG4] Neinvazívní genotypizace: ostatní",null,null,null,null,null,null,null,null,null,null,null,null,"Následující"]
[null,"A7","Ostatní hlodavci (Rodentia)",null,"[A7] Ostatní hlodavci (Rodentia)",null,null,null,null,null,null,"Dánsko",null,null,null,null,null,null,null,null,null,null,null,null,null,null,2027,null,null,null,null,null,null,null,null,null,null,null,null,null,null,null,"Ulož"]
[null,"A8","Králík domácí (Oryctolagus cuniculus)",null,"[A8] Králík domácí (Oryctolagus cuniculus)",null,null,null,null,null,null,"Estonsko",null,null,null,null,null,null,null,null,null,null,null,null,null,null,2028,null,null,null,null,null,null,null,null,null,null,null,null,null,null,null,"Ulož & Pokračuj dále"]
[null,"A9","Kočka domácí (Felis catus)",null,"[A9] Kočka domácí (Felis catus)",null,null,null,null,null,null,"Finsko",null,null,null,null,null,null,null,null,null,null,null,null,null,null,2029,null,null,null,null,null,null,null,null,null,null,null,null,null,null,null,"Zpět"]
[null,"A10","Pes domácí (Canis familiaris)",null,"[A10] Pes domácí (Canis familiaris)",null,null,null,null,null,null,"Francie",null,null,null,null,null,null,null,null,null,null,null,null,null,null,2030,null,null,null,null,null,null,null,null,null,null,null,null,null,null,null,"Obsah řádku"]
[null,"A11","Fretka (Mustela putorius furo)",null,"[A11] Fretka (Mustela putorius furo)",null,null,null,null,null,null,"Německo",null,null,null,null,null,null,null,null,null,null,null,null,null,null,2031,null,null,null,null,null,null,null,null,null,null,null,null,null,null,null,"Podrobnosti využití zvířat"]
[null,"A12","Ostatní šelmy (Carnivora)",null,"[A12] Ostatní šelmy (Carnivora)",null,null,null,null,null,null,"Řecko",null,null,null,null,null,null,null,null,null,null,null,null,null,null,2032]
[null,"A13","Koně, osli a kříženci (Equidae)",null,"[A13] Koně, osli a kříženci (Equidae)",null,null,null,null,null,null,"Maďarsko",null,null,null,null,null,null,null,null,null,null,null,null,null,null,2033]
[null,"A14","Prase domácí (Sus scrofa domesticus)",null,"[A14] Prase domácí (Sus scrofa domesticus)",null,null,null,null,null,null,"Irsko"]
[null,"A15","Koza domácí (Capra aegagrus hircus)",null,"[A15] Koza domácí (Capra aegagrus hircus)",null,null,null,null,null,null,"Itálie"]
[null,"A16","Ovce domácí (Ovis aries)",null,"[A16] Ovce domácí (Ovis aries)",null,null,null,null,null,null,"Lotyšsko"]
[null,"A17","Skot (Bos primigenius)",null,"[A17] Skot (Bos primigenius)",null,null,null,null,null,null,"Litva"]
[null,"A18","Poloopice (Prosimia)",null,"[A18] Poloopice (Prosimia)",null,null,null,null,null,null,"Lucembursko"]
[null,"A19","Kosmani a tamaríni (např. Callithrix jacchus)",null,"[A19] Kosmani a tamaríni (např. Callithrix jacchus)",null,null,null,null,null,null,"Malta"]
[null,"A20","Makak jávský (Macaca fascicularis)",null,"[A20] Makak jávský (Macaca fascicularis)",null,null,null,null,null,null,"Nizozemsko"]
[null,"A21","Makak rhesus (Macaca mulatta)",null,"[A21] Makak rhesus (Macaca mulatta)",null,null,null,null,null,null,"Polsko"]
[null,"A22","Kočkodani rodu Chlorocebus (obvykle buď pygerythrus nebo sabaeus)",null,"[A22] Kočkodani rodu Chlorocebus (obvykle buď pygerythrus nebo sabaeus)",null,null,null,null,null,null,"Portugalsko"]
[null,"A23","Paviáni (Papio spp.)",null,"[A23] Paviáni (Papio spp.)",null,null,null,null,null,null,"Rumunsko"]
[null,"A24","Kotulové (např. Saimiri sciureus)",null,"[A24] Kotulové (např. Saimiri sciureus)",null,null,null,null,null,null,"Slovensko"]
[null,"A25-1","Ostatní opice Starého světa (Cercopithecoidea)",null,"[A25-1] Ostatní opice Starého světa (Cercopithecoidea)",null,null,null,null,null,null,"Slovinsko"]
[null,"A25-2","Ostatní opice Nového světa (Ceboidea)",null,{"$f":"CONCATENATE(\"[\",B27,\"] \",C27)","v":"[A25-2] Ostatní opice Nového světa (Ceboidea)"},null,null,null,null,null,null,"Španělsko"]
[null,"A26","Lidoopi (Hominoidea)",null,"[A26] Lidoopi (Hominoidea)",null,null,null,null,null,null,"Švédsko"]
[null,"A27","Ostatní savci (ostatní Mammalia)",null,"[A27] Ostatní savci (ostatní Mammalia)",null,null,null,null,null,null,"Spojené království"]
[null,"A28","Kur domácí (Gallus gallus domesticus)",null,"[A28] Kur domácí (Gallus gallus domesticus)",null,null,null,null,null,null," "]
[null,"A37","Krůta domácí (Meleagris gallopavo)",null,"[A37] Krůta domácí (Meleagris gallopavo)",null,null,null,null,null,null," "]
[null,"A29","Ostatní ptáci (ostatní Aves)",null,"[A29] Ostatní ptáci (ostatní Aves)",null,null,null,null,null,null," "]
[null,"A30","Plazi (Reptilia)",null,"[A30] Plazi (Reptilia)",null,null,null,null,null,null," "]
[null,"A31","Skokani hnědý a levhartí (Rana temporaria a Rana pipiens)",null,"[A31] Skokani hnědý a levhartí (Rana temporaria a Rana pipiens)",null,null,null,null,null,null," "]
[null,"A32","Drápatky vodní a tropická (Xenopus laevis a Xenopus tropicalis)",null,"[A32] Drápatky vodní a tropická (Xenopus laevis a Xenopus tropicalis)",null,null,null,null,null,null," "]
[null,"A33","Ostatní obojživelníci (ostatní Amphibia)",null,"[A33] Ostatní obojživelníci (ostatní Amphibia)",null,null,null,null,null,null," "]
[null,"A34","Danio pruhované (Danio rerio)",null,"[A34] Danio pruhované (Danio rerio)",null,null,null,null,null,null," "]
[null,"A38","Mořčák evropský (spp. např. Serranidae, Moronidae)",null,"[A38] Mořčák evropský (spp. např. Serranidae, Moronidae)",null,null,null,null,null,null," "]
[null,"A39","Losos, pstruh, siven a lipan (Salmonidae)",null,"[A39] Losos, pstruh, siven a lipan (Salmonidae)",null,null,null,null,null,null," "]
[null,"A40","Živorodka duhová, mečovka mexická, živorodka, plata (Poeciliidae)",null,"[A40] Živorodka duhová, mečovka mexická, živorodka, plata (Poeciliidae)",null,null,null,null,null,null," "]
[null,"A35","Ostatní ryby (ostatní Pisces)",null,"[A35] Ostatní ryby (ostatní Pisces)",null,null,null,null,null,null," "]
[null,"A36","Hlavonožci (Cephalopoda)",null,"[A36] Hlavonožci (Cephalopoda)",null,null,null,null,null,null," "]
[null," ",null,null,null,null,null,null,null,null,null," "]
[null," ",null,null,null,null,null,null,null,null,null," "]
[null," ",null,null,null,null,null,null,null,null,null," "]
[null," ",null,null,null,null,null,null,null,null,null," "]
[null," ",null,null,null,null,null,null,null,null,null," "]
[null," ",null,null,null,null,null,null,null,null,null," "]
[null," ",null,null,null,null,null,null,null,null,null," "]
[null," ",null,null,null,null,null,null,null,null,null," "]
[null," ",null,null,null,null,null,null,null,null,null," "]
[null," ",null,null,null,null,null,null,null,null,null," "]
[null," ",null,null,null,null,null,null,null,null,null," "]
[null," ",null,null,null,null,null,null,null,null,null," "]
[null," ",null,null,null,null,null,null,null,null,null," "]
[null," ",null,null,null,null,null,null,null,null,null," "]
[null," ",null,null,null,null,null,null,null,null,null," "]
[null," ",null,null,null,null,null,null,null,null,null," "]
[null," ",null,null,null,null,null,null,null,null,null," "]
[null," ",null,null,null,null,null,null,null,null,null," "]
[null," ",null,null,null,null,null,null,null,null,null," "]
[null," ",null,null,null,null,null,null,null,null,null," "]
[null," ",null,null,null,null,null,null,null,null,null," "]
[null," ",null,null,null,null,null,null,null,null,null," "]
[null," ",null,null,null,null,null,null,null,null,null," "]
[null," ",null,null,null,null,null,null,null,null,null," "]
[null," ",null,null,null,null,null,null,null,null,null," "]
[null," ",null,null,null,null,null,null,null,null,null," "]
[null," ",null,null,null,null,null,null,null,null,null," "]
[null," ",null,null,null,null,null,null,null,null,null," "]
[null," ",null,null,null,null,null,null,null,null,null," "]
[null," ",null,null,null,null,null,null,null,null,null," "]
[null," ",null,null,null,null,null,null,null,null,null," "]
[null," ",null,null,null,null,null,null,null,null,null," "]
[null," ",null,null,null,null,null,null,null,null,null," "]
[null," ",null,null,null,null,null,null,null,null,null," "]
[null," "]
[null," "]
[null," "]

{"sheet":"Validation","index":4,"n_rows":8,"n_cols":2,"rows_kept":8,"cut":false,"hidden":false,"merged":[[2,1,5,6],[7,1,10,6]]}
[]
[]
[null,"Jestliže chcete zkontrolovat vaše data, klikněte na [Validate], pak opravte případné chyby a klikněte opět na [Validate]."]
[]
[]
[]
[]
[null,"Klikněte na [Clean Validation], jestliže chcete odstranit červené zbarvení buněk vzniklé v důsledku chyb při ověřování."]